Workbook

Sheet Situation patrimoniale
E1: =CONCATENATE("Edité au : ",Donnees!F4) -> Edité au : 02/05/2019
B2: =+Donnees!C1 -> Qualiac développement
B3: Tableau 2
B5: COMPTE DE RÉSULTAT ET ÉTAT DE L'ÉVOLUTION DE LA SITUATION PATRIMONIALE EN DROITS CONSTATÉS
B7: POUR VOTE DE L'ORGANE DÉLIBÉRANT
B9: COMPTE DE RÉSULTAT PRÉVISIONNEL/EXÉCUTÉ
B11: CHARGES | C11: =CONCATENATE(Donnees!W6,CHAR(10),Donnees!E1) -> V3 2018 | D11: PRODUITS | E11: =CONCATENATE(Donnees!W6,CHAR(10),Donnees!E1) -> V3 2018
B12: Personnel | C12: =SUMIFS(Donnees!$I$6:$I$1000000,Donnees!$F$6:$F$1000000,"SPCRC1",Donnees!$B$6:$B$1000000,"B1")-SUMIFS(Donnees!$J$6:$J$1000000,Donnees!$F$6:$F$1000000,"SPCRC1",Donnees!$B$6:$B$1000000,"B1") -> 530580 | D12: Subventions de l'Etat | E12: =-SUM(SUMIFS(Donnees!$I$6:$I$1000000,Donnees!$F$6:$F$1000000,"SPCRP1",Donnees!$B$6:$B$1000000,"B1"))+SUM(SUMIFS(Donnees!$J$6:$J$1000000,Donnees!$F$6:$F$1000000,"SPCRP1",Donnees!$B$6:$B$1000000,"B1")) -> 324000
B13: dont charges de pensions civiles | C13: =SUMIFS(Donnees!$I$6:$I$1000000,Donnees!$H$6:$H$1000000,"6453",Donnees!$B$6:$B$1000000,"B1")-SUMIFS(Donnees!$J$6:$J$1000000,Donnees!$H$6:$H$1000000,"6453",Donnees!$B$6:$B$1000000,"B1") -> 0 | D13: Fiscalité affectée | E13: =-SUMIFS(Donnees!$I$6:$I$1000000,Donnees!$F$6:$F$1000000,"SPCRP2",Donnees!$B$6:$B$1000000,"B1")+SUMIFS(Donnees!$J$6:$J$1000000,Donnees!$F$6:$F$1000000,"SPCRP2",Donnees!$B$6:$B$1000000,"B1") -> 0
B14: Fonctionnement autre que les charges de personnel | C14: =SUMIFS(Donnees!$I$6:$I$1000000,Donnees!$F$6:$F$1000000,"SPCRC2",Donnees!$B$6:$B$1000000,"B1")-SUMIFS(Donnees!$J$6:$J$1000000,Donnees!$F$6:$F$1000000,"SPCRC2",Donnees!$B$6:$B$1000000,"B1") -> 960049.29 | D14: Autres subventions | E14: =-SUMIFS(Donnees!$I$6:$I$1000000,Donnees!$F$6:$F$1000000,"SPCRP3",Donnees!$B$6:$B$1000000,"B1")+SUMIFS(Donnees!$J$6:$J$1000000,Donnees!$F$6:$F$1000000,"SPCRP3",Donnees!$B$6:$B$1000000,"B1") -> 648000
B15: Intervention (le cas échéant) | C15: =SUMIFS(Donnees!$I$6:$I$1000000,Donnees!$F$6:$F$1000000,"SPCRC3",Donnees!$B$6:$B$1000000,"B1")-SUMIFS(Donnees!$J$6:$J$1000000,Donnees!$F$6:$F$1000000,"SPCRC3",Donnees!$B$6:$B$1000000,"B1") -> 105000 | D15: Autres produits | E15: =-SUM(SUMIFS(Donnees!$I$6:$I$1000000,Donnees!$F$6:$F$1000000,"SPCRP4",Donnees!$B$6:$B$1000000,"B1"))+SUM(SUMIFS(Donnees!$J$6:$J$1000000,Donnees!$F$6:$F$1000000,"SPCRP4",Donnees!$B$6:$B$1000000,"B1")) -> 754683.67
B16: TOTAL DES CHARGES (1) | C16: =SUM(C12,C14,C15) -> 1595629.29 | D16: TOTAL DES PRODUITS (2) | E16: =SUM(E12:E15) -> 1726683.67
B17: Résultat : bénéfice (3) = (2) - (1) | C17: =IF(E16>C16,E16-C16,0) -> 131054.38 | D17: Résultat : perte (4) = (1) - (2) | E17: =IF(C16>E16,C16-E16,0) -> 0
B18: TOTAL EQUILIBRE du compte de résultat (1) + (3) = (2) + (4) | C18: =SUM(C16:C17) -> 1726683.67 | D18: TOTAL EQUILIBRE du compte de résultat (1) + (3) = (2) + (4) | E18: =SUM(E16:E17) -> 1726683.67
B21: CALCUL DE LA CAPACITÉ D'AUTOFINANCEMENT
C23: =CONCATENATE(Donnees!W6,CHAR(10),Donnees!E1) -> V3 2018
B24: Résultat de l'exercice (bénéfice (3) ou perte (-4)) | C24: =C17-E17 -> 131054.38
B25: + Dotations aux amortissements, dépréciations et provisions | C25: =SUMIFS(Donnees!$I$6:$I$1000000,Donnees!$G$6:$G$1000000,"681",Donnees!$B$6:$B$1000000,"B1")-SUMIFS(Donnees!$J$6:$J$1000000,Donnees!$G$6:$G$1000000,"681",Donnees!$B$6:$B$1000000,"B1")+SUMIFS(Donnees!$I$6:$I$1000000,Donnees!$G$6:$G$1000000,"684",Donnees!$B$6:$B$1000000,"B1")-SUMIFS(Donnees!$J$6:$J$1000000,Donnees!$G$6:$G$1000000,"684",Donnees!$B$6:$B$1000000,"B1")+SUMIFS(Donnees!$I$6:$I$1000000,Donnees!$G$6:$G$1000000,"686",Donnees!$B$6:$B$1000000,"B1")-SUMIFS(Donnees!$J$6:$J$1000000,Donnees!$G$6:$G$1000000,"686",Donnees!$B$6:$B$1000000,"B1")+IF(Donnees!AI6="O",SUMIFS(Donnees!$I$6:$I$1000000,Donnees!$G$6:$G$1000000,"603",Donnees!$B$6:$B$1000000,"B1")-SUMIFS(Donnees!$J$6:$J$1000000,Donnees!$G$6:$G$1000000,"603",Donnees!$B$6:$B$1000000,"B1"),0) -> 324663.41
B26: - reprises sur amortissements, dépréciations et provisions | C26: =SUMIFS(Donnees!$J$6:$J$1000000,Donnees!$G$6:$G$1000000,"781",Donnees!$B$6:$B$1000000,"B1")-SUMIFS(Donnees!$I$6:$I$1000000,Donnees!$G$6:$G$1000000,"781",Donnees!$B$6:$B$1000000,"B1")+SUMIFS(Donnees!$J$6:$J$1000000,Donnees!$G$6:$G$1000000,"784",Donnees!$B$6:$B$1000000,"B1")-SUMIFS(Donnees!$I$6:$I$1000000,Donnees!$G$6:$G$1000000,"784",Donnees!$B$6:$B$1000000,"B1")+SUMIFS(Donnees!$J$6:$J$1000000,Donnees!$G$6:$G$1000000,"786",Donnees!$B$6:$B$1000000,"B1")-SUMIFS(Donnees!$I$6:$I$1000000,Donnees!$G$6:$G$1000000,"786",Donnees!$B$6:$B$1000000,"B1") -> 96000
B27: + valeur nette comptable des éléments d'actifs cédés | C27: =SUMIFS(Donnees!$I$6:$I$1000000,Donnees!$G$6:$G$1000000,"656",Donnees!$B$6:$B$1000000,"B1")-SUMIFS(Donnees!$J$6:$J$1000000,Donnees!$G$6:$G$1000000,"656",Donnees!$B$6:$B$1000000,"B1")+SUMIFS(Donnees!$I$6:$I$1000000,Donnees!$H$6:$H$1000000,"6577",Donnees!$B$6:$B$1000000,"B1")-SUMIFS(Donnees!$J$6:$J$1000000,Donnees!$H$6:$H$1000000,"6577",Donnees!$B$6:$B$1000000,"B1")+SUMIFS(Donnees!$I$6:$I$1000000,Donnees!$H$6:$H$1000000,"6672",Donnees!$B$6:$B$1000000,"B1")-SUMIFS(Donnees!$J$6:$J$1000000,Donnees!$H$6:$H$1000000,"6672",Donnees!$B$6:$B$1000000,"B1") -> 38000
B28: - produits de cession d'éléments d'actifs | C28: =SUMIFS(Donnees!$J$6:$J$1000000,Donnees!$G$6:$G$1000000,"756",Donnees!$B$6:$B$1000000,"B1")-SUMIFS(Donnees!$I$6:$I$1000000,Donnees!$G$6:$G$1000000,"756",Donnees!$B$6:$B$1000000,"B1")+SUMIFS(Donnees!$J$6:$J$1000000,Donnees!$H$6:$H$1000000,"7577",Donnees!$B$6:$B$1000000,"B1")-SUMIFS(Donnees!$I$6:$I$1000000,Donnees!$H$6:$H$1000000,"7577",Donnees!$B$6:$B$1000000,"B1")+SUMIFS(Donnees!$J$6:$J$1000000,Donnees!$H$6:$H$1000000,"7672",Donnees!$B$6:$B$1000000,"B1")-SUMIFS(Donnees!$I$6:$I$1000000,Donnees!$H$6:$H$1000000,"7672",Donnees!$B$6:$B$1000000,"B1") -> 150000
B29: - quote-part reprise au résultat des financements rattachés à des actifs | C29: =SUMIFS(Donnees!$J$6:$J$1000000,Donnees!$G$6:$G$1000000,"7813",Donnees!$B$6:$B$1000000,"B1")-SUMIFS(Donnees!$I$6:$I$1000000,Donnees!$G$6:$G$1000000,"7813",Donnees!$B$6:$B$1000000,"B1")+SUMIFS(Donnees!$J$6:$J$1000000,Donnees!$G$6:$G$1000000,"7863",Donnees!$B$6:$B$1000000,"B1")-SUMIFS(Donnees!$I$6:$I$1000000,Donnees!$G$6:$G$1000000,"7863",Donnees!$B$6:$B$1000000,"B1") -> 11000
B30: = CAF ou IAF* | C30: =(C24+C25-C26+C27-C28-C29) -> 236717.79
B31: *capacité d'autofinancement ou d'insuffisance d'autofinancement
B34: ÉTAT PRÉVISIONNEL/EXÉCUTÉ DE L'ÉVOLUTION DE LA SITUATION PATRIMONIALE EN DROITS CONSTATÉS
B36: EMPLOIS | C36: =CONCATENATE(Donnees!W6,CHAR(10),Donnees!E1) -> V3 2018 | D36: RESSOURCES | E36: =CONCATENATE(Donnees!W6,CHAR(10),Donnees!E1) -> V3 2018
B37: Insuffisance d'autofinancement | C37: =+IF(C30<0,-C30,0) -> 0 | D37: Capacité d'autofinancement | E37: =+IF(C30>0,C30,0) -> 236717.79
B38: Investissements | C38: =SUM(SUMIFS(Donnees!$I$6:$I$1000000,Donnees!$F$6:$F$1000000,"SPERE1",Donnees!$B$6:$B$1000000,"B1"))-SUM(SUMIFS(Donnees!$J$6:$J$1000000,Donnees!$F$6:$F$1000000,"SPERE1",Donnees!$B$6:$B$1000000,"B1")) -> 952720 | D38: Financement de l'actif par l'État | E38: =-SUMIFS(Donnees!$I$6:$I$1000000,Donnees!$F$6:$F$1000000,"SPERR1",Donnees!$B$6:$B$1000000,"B1")+SUMIFS(Donnees!$J$6:$J$1000000,Donnees!$F$6:$F$1000000,"SPERR1",Donnees!$B$6:$B$1000000,"B1") -> 400000
D39: Financement de l'actif par des tiers autres que l'État | E39: =-SUMIFS(Donnees!$I$6:$I$1000000,Donnees!$F$6:$F$1000000,"SPERR2",Donnees!$B$6:$B$1000000,"B1")+SUMIFS(Donnees!$J$6:$J$1000000,Donnees!$F$6:$F$1000000,"SPERR2",Donnees!$B$6:$B$1000000,"B1") -> 116000
D40: Autres ressources | E40: =-SUMIFS(Donnees!$I$6:$I$1000000,Donnees!$F$6:$F$1000000,"SPERR3",Donnees!$B$6:$B$1000000,"B1") +SUMIFS(Donnees!$J$6:$J$1000000,Donnees!$F$6:$F$1000000,"SPERR3",Donnees!$B$6:$B$1000000,"B1") +SUMIFS(Donnees!$J$6:$J$1000000,Donnees!$G$6:$G$1000000,"756",Donnees!$B$6:$B$1000000,"B1") +SUMIFS(Donnees!$J$6:$J$1000000,Donnees!$H$6:$H$1000000,"7577",Donnees!$B$6:$B$1000000,"B1") +SUMIFS(Donnees!$J$6:$J$1000000,Donnees!$H$6:$H$1000000,"7672",Donnees!$B$6:$B$1000000,"B1") +SUMIFS(Donnees!$J$6:$J$1000000,Donnees!$H$6:$H$1000000,"6672",Donnees!$B$6:$B$1000000,"B1") -> 150000
B41: Remboursement des dettes financières | C41: =SUM(SUMIFS(Donnees!$I$6:$I$1000000,Donnees!$F$6:$F$1000000,"SPERE2",Donnees!$B$6:$B$1000000,"B1"))-SUM(SUMIFS(Donnees!$J$6:$J$1000000,Donnees!$F$6:$F$1000000,"SPERE2",Donnees!$B$6:$B$1000000,"B1")) -> 48000 | D41: Augmentation des dettes financières | E41: =SUM(SUMIFS(Donnees!$J$6:$J$1000000,Donnees!$F$6:$F$1000000,"SPERR4",Donnees!$B$6:$B$1000000,"B1"))-SUM(SUMIFS(Donnees!$I$6:$I$1000000,Donnees!$F$6:$F$1000000,"SPERR4",Donnees!$B$6:$B$1000000,"B1")) -> 108000
B42: TOTAL DES EMPLOIS (5) | C42: =SUM(C37:C41) -> 1000720 | D42: TOTAL DES RESSOURCES (6) | E42: =SUM(E37:E41) -> 1010717.79
B43: Augmentation du fonds de roulement (7) = (6)-(5) | C43: =IF(E42>C42,E42-C42,0) -> 9997.79 | D43: Diminution du fonds de roulement (8) = (5)-(6) | E43: =IF(C42>E42,C42-E42,0) -> 0
B46: POUR INFORMATION DE L'ORGANE DÉLIBÉRANT
B48: VARIATION ET NIVEAU DU FONDS DE ROULEMENT, DU BESOIN EN FONDS DE ROULEMENT ET DE LA TRÉSORERIE
E50: =CONCATENATE(Donnees!W6,CHAR(10),Donnees!E1) -> V3 2018
B51: Variation du FONDS DE ROULEMENT : AUGMENTATION (7) ou DIMINUTION (8) | E51: =+C43-E43 -> 9997.79
B52: Variation du BESOIN en FONDS DE ROULEMENT (FONDS DE ROULEMENT - TRÉSORERIE) | E52: =E51-E53 -> 9997.79
B53: Variation de la TRÉSORERIE : ABONDEMENT (I) ou PRÉLÈVEMENT (II)*
B54: Niveau final du FONDS DE ROULEMENT | E54: =E55+E56 -> 242000
B55: Niveau final du BESOIN EN FONDS DE ROULEMENT | E55: =SUM(SUMIFS(Donnees!$I$6:$I$1000000,Donnees!$F$6:$F$1000000,"SPTRE1",Donnees!$B$6:$B$1000000,"B1"))-SUM(SUMIFS(Donnees!$J$6:$J$1000000,Donnees!$F$6:$F$1000000,"SPTRE1",Donnees!$B$6:$B$1000000,"B1")) -> 169000
B56: Niveau final de la TRÉSORERIE | E56: =SUM(SUMIFS(Donnees!$I$6:$I$1000000,Donnees!$F$6:$F$1000000,"SPTRE2",Donnees!$B$6:$B$1000000,"B1"))-SUM(SUMIFS(Donnees!$J$6:$J$1000000,Donnees!$F$6:$F$1000000,"SPTRE2",Donnees!$B$6:$B$1000000,"B1")) -> 73000
B58: * Montant issu du tableau "Equilibre financier"

Sheet Pdf1 (hidden)
B1: =IF(Donnees!AD6="07",+CONCATENATE("PDF_","CR",Donnees!AH6,"_",Donnees!Z6,REPT(" ",10-LEN(Donnees!Z6)),"_",Donnees!M6),+CONCATENATE("CR",Donnees!AH6,"_",Donnees!Z6,REPT(" ",10-LEN(Donnees!Z6)),"_",Donnees!AA6,"_",Donnees!AC6,"_",Donnees!M6,"_",Donnees!AD6)) -> CRP_1479999999_03_02_2018_04 | E1: =CONCATENATE("Edité au : ",Donnees!F4) -> Edité au : 02/05/2019
B2: =+Donnees!C1 -> Qualiac développement
B3: Tableau 2
B5: COMPTE DE RÉSULTAT ET ÉTAT DE L'ÉVOLUTION DE LA SITUATION PATRIMONIALE EN DROITS CONSTATÉS
B8: COMPTE DE RÉSULTAT PRÉVISIONNEL/EXÉCUTÉ
B10: CHARGES | C10: =CONCATENATE(Donnees!W6,CHAR(10),Donnees!E1) -> V3 2018 | D10: PRODUITS | E10: =CONCATENATE(Donnees!W6,CHAR(10),Donnees!E1) -> V3 2018
B11: Personnel | C11: ='Situation patrimoniale'!C12 -> 530580 | D11: Subventions de l'Etat | E11: ='Situation patrimoniale'!E12 -> 324000
B12: dont charges de pensions civiles | C12: ='Situation patrimoniale'!C13 -> 0 | D12: Fiscalité affectée | E12: ='Situation patrimoniale'!E13 -> 0
B13: Fonctionnement autre que les charges de personnel | C13: ='Situation patrimoniale'!C14 -> 960049.29 | D13: Autres subventions | E13: ='Situation patrimoniale'!E14 -> 648000
B14: Intervention (le cas échéant) | C14: ='Situation patrimoniale'!C15 -> 105000 | D14: Autres produits | E14: ='Situation patrimoniale'!E15 -> 754683.67
B15: TOTAL DES CHARGES (1) | C15: =SUM(C11,C13,C14) -> 1595629.29 | D15: TOTAL DES PRODUITS (2) | E15: =SUM(E11:E14) -> 1726683.67
B16: Résultat : bénéfice (3) = (2) - (1) | C16: =IF(E15>C15,E15-C15,0) -> 131054.38 | D16: Résultat : perte (4) = (1) - (2) | E16: =IF(C15>E15,C15-E15,0) -> 0
B17: TOTAL EQUILIBRE du compte de résultat (1) + (3) = (2) + (4) | C17: =SUM(C15:C16) -> 1726683.67 | D17: TOTAL EQUILIBRE du compte de résultat (1) + (3) = (2) + (4) | E17: =SUM(E15:E16) -> 1726683.67

Sheet Pdf2 (hidden)
B1: =IF(Donnees!AD6="07",+CONCATENATE("PDF_","CAF",Donnees!AH6,"_",Donnees!Z6,REPT(" ",10-LEN(Donnees!Z6)),"_",Donnees!M6),+CONCATENATE("CAF",Donnees!AH6,"_",Donnees!Z6,REPT(" ",10-LEN(Donnees!Z6)),"_",Donnees!AA6,"_",Donnees!AC6,"_",Donnees!M6,"_",Donnees!AD6)) -> CAFP_1479999999_03_02_2018_04 | E1: =CONCATENATE("Edité au : ",Donnees!F4) -> Edité au : 02/05/2019
B2: =+Donnees!C1 -> Qualiac développement
B3: Tableau 2
B5: COMPTE DE RÉSULTAT ET ÉTAT DE L'ÉVOLUTION DE LA SITUATION PATRIMONIALE EN DROITS CONSTATÉS
B8: CALCUL DE LA CAPACITÉ D'AUTOFINANCEMENT
C10: =CONCATENATE(Donnees!W6,CHAR(10),Donnees!E1) -> V3 2018
B11: Résultat de l'exercice (bénéfice (3) ou perte (-4)) | C11: ='Situation patrimoniale'!C24 -> 131054.38
B12: + Dotations aux amortissements, dépréciations et provisions | C12: ='Situation patrimoniale'!C25 -> 324663.41
B13: - reprises sur amortissements, dépréciations et provisions | C13: ='Situation patrimoniale'!C26 -> 96000
B14: + valeur nette comptable des éléments d'actifs cédés | C14: ='Situation patrimoniale'!C27 -> 38000
B15: - produits de cession d'éléments d'actifs | C15: ='Situation patrimoniale'!C28 -> 150000
B16: - quote-part reprise au résultat des financements rattachés à des actifs | C16: ='Situation patrimoniale'!C29 -> 11000
B17: = CAF ou IAF* | C17: =(C11+C12-C13+C14-C15-C16) -> 236717.79
B18: *capacité d'autofinancement ou d'insuffisance d'autofinancement

Sheet Pdf3 (hidden)
B1: =IF(Donnees!AD6="07",+CONCATENATE("PDF_","TF",Donnees!AH6,"_",Donnees!Z6,REPT(" ",10-LEN(Donnees!Z6)),"_",Donnees!M6),+CONCATENATE("TF",Donnees!AH6,"_",Donnees!Z6,REPT(" ",10-LEN(Donnees!Z6)),"_",Donnees!AA6,"_",Donnees!AC6,"_",Donnees!M6,"_",Donnees!AD6)) -> TFP_1479999999_03_02_2018_04 | E1: =CONCATENATE("Edité au : ",Donnees!F4) -> Edité au : 02/05/2019
B2: =+Donnees!C1 -> Qualiac développement
B3: Tableau 2
B5: COMPTE DE RÉSULTAT ET ÉTAT DE L'ÉVOLUTION DE LA SITUATION PATRIMONIALE EN DROITS CONSTATÉS
B8: ÉTAT PRÉVISIONNEL/EXÉCUTÉ DE L'ÉVOLUTION DE LA SITUATION PATRIMONIALE EN DROITS CONSTATÉS
B10: EMPLOIS | C10: =CONCATENATE(Donnees!W6,CHAR(10),Donnees!E1) -> V3 2018 | D10: RESSOURCES | E10: =CONCATENATE(Donnees!W6,CHAR(10),Donnees!E1) -> V3 2018
B11: Insuffisance d'autofinancement | C11: ='Situation patrimoniale'!C37 -> 0 | D11: Capacité d'autofinancement | E11: ='Situation patrimoniale'!E37 -> 236717.79
B12: Investissements | C12: ='Situation patrimoniale'!C38 -> 952720 | D12: Financement de l'actif par l'État | E12: ='Situation patrimoniale'!E38 -> 400000
D13: Financement de l'actif par des tiers autres que l'État | E13: ='Situation patrimoniale'!E39 -> 116000
D14: Autres ressources | E14: ='Situation patrimoniale'!E40 -> 150000
B15: Remboursement des dettes financières | C15: ='Situation patrimoniale'!C41 -> 48000 | D15: Augmentation des dettes financières | E15: ='Situation patrimoniale'!E41 -> 108000
B16: TOTAL DES EMPLOIS (5) | C16: ='Situation patrimoniale'!C42 -> 1000720 | D16: TOTAL DES RESSOURCES (6) | E16: ='Situation patrimoniale'!E42 -> 1010717.79
B17: Augmentation du fonds de roulement (7) = (6)-(5) | C17: ='Situation patrimoniale'!C43 -> 9997.79 | D17: Diminution du fonds de roulement (8) = (5)-(6) | E17: ='Situation patrimoniale'!E43 -> 0

Sheet Pdf4 (hidden)
B1: =IF(Donnees!AD6="07",+CONCATENATE("PDF_","SP",Donnees!AH6,"1_",Donnees!Z6,REPT(" ",10-LEN(Donnees!Z6)),"_",Donnees!M6),+CONCATENATE("SP",Donnees!AH6,"1_",Donnees!Z6,REPT(" ",10-LEN(Donnees!Z6)),"_",Donnees!AA6,"_",Donnees!AC6,"_",Donnees!M6,"_",Donnees!AD6)) -> SPP1_1479999999_03_02_2018_04 | E1: =CONCATENATE("Edité au : ",Donnees!F4) -> Edité au : 02/05/2019
B2: =+Donnees!C1 -> Qualiac développement
B3: Tableau 2
B5: COMPTE DE RÉSULTAT ET ÉTAT DE L'ÉVOLUTION DE LA SITUATION PATRIMONIALE EN DROITS CONSTATÉS
B8: ÉTAT PRÉVISIONNEL/EXÉCUTÉ DE L'ÉVOLUTION DE LA SITUATION PATRIMONIALE EN DROITS CONSTATÉS
B10: EMPLOIS | C10: =CONCATENATE(Donnees!W6,CHAR(10),Donnees!E1) -> V3 2018 | D10: RESSOURCES | E10: =CONCATENATE(Donnees!W6,CHAR(10),Donnees!E1) -> V3 2018
B11: Insuffisance d'autofinancement | C11: ='Situation patrimoniale'!C37 -> 0 | D11: Capacité d'autofinancement | E11: ='Situation patrimoniale'!E37 -> 236717.79
B12: Investissements | C12: ='Situation patrimoniale'!C38 -> 952720 | D12: Financement de l'actif par l'État | E12: ='Situation patrimoniale'!E38 -> 400000
D13: Financement de l'actif par des tiers autres que l'État | E13: ='Situation patrimoniale'!E39 -> 116000
D14: Autres ressources | E14: ='Situation patrimoniale'!E40 -> 150000
B15: Remboursement des dettes financières | C15: ='Situation patrimoniale'!C41 -> 48000 | D15: Augmentation des dettes financières | E15: ='Situation patrimoniale'!E41 -> 108000
B16: TOTAL DES EMPLOIS (5) | C16: ='Situation patrimoniale'!C42 -> 1000720 | D16: TOTAL DES RESSOURCES (6) | E16: ='Situation patrimoniale'!E42 -> 1010717.79
B17: Augmentation du fonds de roulement (7) = (6)-(5) | C17: ='Situation patrimoniale'!C43 -> 9997.79 | D17: Diminution du fonds de roulement (8) = (5)-(6) | E17: ='Situation patrimoniale'!E43 -> 0

Sheet Fonds de roulement
E1: =CONCATENATE("Edité au : ",Donnees!F4) -> Edité au : 02/05/2019
B2: =+Donnees!C1 -> Qualiac développement
B3: Tableau 2
B5: VARIATION ET NIVEAU DU FONDS DE ROULEMENT, DU BESOIN EN FONDS DE ROULEMENT ET DE LA TRÉSORERIE
E7: =CONCATENATE(Donnees!W6,CHAR(10),Donnees!E1) -> V3 2018
B8: Variation du FONDS DE ROULEMENT : AUGMENTATION (7) ou DIMINUTION (8) | E8: ='Situation patrimoniale'!E51 -> 9997.79
B9: Variation du BESOIN en FONDS DE ROULEMENT (FONDS DE ROULEMENT - TRÉSORERIE) | E9: ='Situation patrimoniale'!E52 -> 9997.79
B10: Variation de la TRESORERIE : ABONDEMENT (I) ou PRÉLÈVEMENT (II)* | E10: ='Situation patrimoniale'!E53 -> 0
B11: Niveau final du FONDS DE ROULEMENT | E11: ='Situation patrimoniale'!E54 -> 242000
B12: Niveau final du BESOIN EN FONDS DE ROULEMENT | E12: ='Situation patrimoniale'!E55 -> 169000
B13: Niveau final de la TRÉSORERIE | E13: ='Situation patrimoniale'!E56 -> 73000
B15: * Montant issu du tableau "Equilibre financier"

Sheet PrFicTab5 (hidden)
A1: Code fichier : | B1: =+CONCATENATE("SP",Donnees!AH6,"2_",Donnees!Z6,REPT(" ",10-LEN(Donnees!Z6)),"_",Donnees!AA6,"_",Donnees!AC6,"_",Donnees!M6,"_",Donnees!AD6,".txt") -> SPP2_1479999999_03_02_2018_04.txt
A3: 100001 | E3: =+CONCATENATE(A3,Donnees!Z6,REPT(" ",10-LEN(Donnees!Z6)),Donnees!AA6,Donnees!AB6,REPT(" ",2-LEN(Donnees!AB6)),Donnees!AC6,Donnees!M6,Donnees!AD6,Donnees!AE6,Donnees!AF6,Donnees!AG6) -> 10000114799999990301022018043112201831639383431639383400080
A4: 200002 | B4: 01 | C4: ='Fonds de roulement'!E8 -> 9997.79 | D4: =IF(C4>=0,CONCATENATE("+",+TEXT(C4*100,"00000000000000")),CONCATENATE("",+TEXT(C4*100,"00000000000000"))) -> +00000000999779 | E4: =+CONCATENATE(A4,B4,D4,REPT(" ",59-LEN(CONCATENATE(A4,B4,D4)))) -> 20000201+00000000999779
A5: 200003 | B5: 02 | C5: ='Fonds de roulement'!E9 -> 9997.79 | D5: +00000000999779 | E5: 20000302+00000000999779
A6: 200004 | B6: 03 | C6: ='Fonds de roulement'!E10 -> 0 | D6: +00000000000000 | E6: 20000403+00000000000000
A7: 200005 | B7: 04 | C7: ='Fonds de roulement'!E11 -> 242000 | D7: +00000024200000 | E7: 20000504+00000024200000
A8: 200006 | B8: 05 | C8: ='Fonds de roulement'!E12 -> 169000 | D8: +00000016900000 | E8: 20000605+00000016900000
A9: 200007 | B9: 06 | C9: ='Fonds de roulement'!E13 -> 73000 | D9: +00000007300000 | E9: 20000706+00000007300000
A10: 900008 | E10: =+CONCATENATE(A10,REPT(" ",59-LEN(A10))) -> 900008

Sheet FicTab5 (hidden)
A1: =PrFicTab5!E3 -> 10000114799999990301022018043112201831639383431639383400080
A2: =PrFicTab5!E4 -> 20000201+00000000999779
A3: =PrFicTab5!E5 -> 20000302+00000000999779
A4: =PrFicTab5!E6 -> 20000403+00000000000000
A5: =PrFicTab5!E7 -> 20000504+00000024200000
A6: =PrFicTab5!E8 -> 20000605+00000016900000
A7: =PrFicTab5!E9 -> 20000706+00000007300000
A8: =PrFicTab5!E10 -> 900008

Sheet Donnees
A1: Etablissement : | B1: =K6 -> IND | C1: =L6 -> Qualiac développement | D1: Année de l'exercice : | E1: =M6 -> 2018
A2: CGR : | B2: =N6 -> CENTRE | C2: =O6 -> Centre | D2: Chemin : | E2: =P6 -> DAT
A3: Poste : | B3: =Q6 -> SP | C3: =R6 -> Situation patrimoniale | D3: Chemin : | E3: =S6 -> SP
A4: Job : | B4: =T6 -> 428638 | C4: Utilisateur : | D4: =U6 -> PR | E4: Date : | F4: =V6 -> 02/05/2019
A5: But | B5: But N° | C5: Poste | D5: Poste 1 | E5: Poste 2 | F5: Poste 3 | G5: Poste 4 | H5: Poste 5 | I5: Montant débit | J5: Montant crédit | K5: Etablissement | L5: Intitulé de l'établissement | M5: Année | N5: CGR | O5: Intitulé du CGR | P5: Chemin | Q5: Poste | R5: Intitulé du poste | S5: Chemin | T5: Job | U5: Utilisateur | V5: Date | W5: But 1 | X5: Type d'enregistrement | Y5: Numéro de l'enregistrement | Z5: Identifiant de l’établissement | AA5: Type de document | AB5: Code nomenclature | AC5: Code budget | AD5: Rang de la balance | AE5: Date d'arrêté | AF5: SIREN | AG5: SIRET | AH5: Type fichier | AI5: Formule CAF
A6: RC | B6: B1 | C6: 104 | D6: SPER | E6: SPERR | F6: SPERR1 | G6: 104 | I6: 0 | J6: 400000 | K6: IND | L6: Qualiac développement | M6: 2018 | N6: CENTRE | O6: Centre | P6: DAT | Q6: SP | R6: Situation patrimoniale | S6: SP | T6: 428638 | U6: PR | V6: 02/05/2019 | W6: V3 | X6: 1 | Y6: 00001 | Z6: 1479999999 | AA6: 03 | AB6: 01 | AC6: 02 | AD6: 04 | AE6: 31122018 | AF6: 316393834 | AG6: 31639383400080 | AH6: P | AI6: O
A7: RC | B7: B1 | C7: 131 | D7: SPER | E7: SPERR | F7: SPERR2 | G7: 131 | I7: 0 | J7: 76000
A8: RC | B8: B1 | C8: 138 | D8: SPER | E8: SPERR | F8: SPERR2 | G8: 138 | I8: 0 | J8: 40000
A9: RC | B9: B1 | C9: 161D | D9: SPER | E9: SPERE | F9: SPERE2 | G9: 161D | I9: 8000 | J9: 0
A10: RC | B10: B1 | C10: 164C | D10: SPER | E10: SPERR | F10: SPERR4 | G10: 164C | I10: 0 | J10: 80000
A11: RC | B11: B1 | C11: 174D | D11: SPER | E11: SPERE | F11: SPERE2 | G11: 174D | I11: 40000 | J11: 0
A12: RC | B12: B1 | C12: 178C | D12: SPER | E12: SPERR | F12: SPERR4 | G12: 178C | I12: 0 | J12: 28000
A13: RC | B13: B1 | C13: 201D | D13: SPER | E13: SPERE | F13: SPERE1 | G13: 201D | I13: 72000 | J13: 0
A14: RC | B14: B1 | C14: 203D | D14: SPER | E14: SPERE | F14: SPERE1 | G14: 203D | I14: 44000 | J14: 0
A15: RC | B15: B1 | C15: 211D | D15: SPER | E15: SPERE | F15: SPERE1 | G15: 211D | I15: 40000 | J15: 0
A16: RC | B16: B1 | C16: 213D | D16: SPER | E16: SPERE | F16: SPERE1 | G16: 213D | I16: 480000 | J16: 0
A17: RC | B17: B1 | C17: 231D | D17: SPER | E17: SPERE | F17: SPERE1 | G17: 231D | I17: 144000 | J17: 0
A18: RC | B18: B1 | C18: 237D | D18: SPER | E18: SPERE | F18: SPERE1 | G18: 237D | I18: 70720 | J18: 0
A19: RC | B19: B1 | C19: 261D | D19: SPER | E19: SPERE | F19: SPERE1 | G19: 261D | I19: 76000 | J19: 0
A20: RC | B20: B1 | C20: 267D | D20: SPER | E20: SPERE | F20: SPERE1 | G20: 267D | I20: 6000 | J20: 0
A21: RC | B21: B1 | C21: 272D | D21: SPER | E21: SPERE | F21: SPERE1 | G21: 272D | I21: 20000 | J21: 0
A22: RC | B22: B1 | C22: 341 | D22: SPTR | E22: SPTRE | F22: SPTRE1 | G22: 341 | I22: 160000 | J22: 0
A23: RC | B23: B1 | C23: 431 | D23: SPTR | E23: SPTRE | F23: SPTRE1 | G23: 431 | I23: 9000 | J23: 0
A24: RC | B24: B1 | C24: 512 | D24: SPTR | E24: SPTRE | F24: SPTRE2 | G24: 512 | I24: 70000 | J24: 0
A25: RC | B25: B1 | C25: 531 | D25: SPTR | E25: SPTRE | F25: SPTRE2 | G25: 531 | I25: 3000 | J25: 0
A26: RC | B26: B1 | C26: 603 | D26: SPCR | E26: SPCRC | F26: SPCRC2 | G26: 603 | I26: 156663.41 | J26: 0
A27: RC | B27: B1 | C27: 606 | D27: SPCR | E27: SPCRC | F27: SPCRC2 | G27: 606 | I27: 2731.37 | J27: 0
A28: RC | B28: B1 | C28: 606 | D28: SPCR | E28: SPCRC | F28: SPCRC2 | G28: 606 | I28: 146023.58 | J28: 0
A29: RC | B29: B1 | C29: 606 | D29: SPCR | E29: SPCRC | F29: SPCRC2 | G29: 606 | I29: 33055.71 | J29: 0
A30: RC | B30: B1 | C30: 606 | D30: SPCR | E30: SPCRC | F30: SPCRC2 | G30: 606 | I30: 1035.22 | J30: 0
A31: RC | B31: B1 | C31: 606 | D31: SPCR | E31: SPCRC | F31: SPCRC2 | G31: 606 | I31: 6041.58 | J31: 0
A32: RC | B32: B1 | C32: 606 | D32: SPCR | E32: SPCRC | F32: SPCRC2 | G32: 606 | I32: 101975.21 | J32: 0
A33: RC | B33: B1 | C33: 606 | D33: SPCR | E33: SPCRC | F33: SPCRC2 | G33: 606 | I33: 13817.4 | J33: 0
A34: RC | B34: B1 | C34: 606 | D34: SPCR | E34: SPCRC | F34: SPCRC2 | G34: 606 | I34: 21608.18 | J34: 0
A35: RC | B35: B1 | C35: 606 | D35: SPCR | E35: SPCRC | F35: SPCRC2 | G35: 606 | I35: 16389.96 | J35: 0
A36: RC | B36: B1 | C36: 606 | D36: SPCR | E36: SPCRC | F36: SPCRC2 | G36: 606 | I36: 52000 | J36: 0
A37: RC | B37: B1 | C37: 606 | D37: SPCR | E37: SPCRC | F37: SPCRC2 | G37: 606 | I37: 151700 | J37: 0
A38: RC | B38: B1 | C38: 612 | D38: SPCR | E38: SPCRC | F38: SPCRC2 | G38: 612 | I38: 13408.65 | J38: 0
A39: RC | B39: B1 | C39: 612 | D39: SPCR | E39: SPCRC | F39: SPCRC2 | G39: 612 | I39: 7474.59 | J39: 0
A40: RC | B40: B1 | C40: 612 | D40: SPCR | E40: SPCRC | F40: SPCRC2 | G40: 612 | I40: 5043.83 | J40: 0
A41: RC | B41: B1 | C41: 612 | D41: SPCR | E41: SPCRC | F41: SPCRC2 | G41: 612 | I41: 4808.24 | J41: 0
A42: RC | B42: B1 | C42: 612 | D42: SPCR | E42: SPCRC | F42: SPCRC2 | G42: 612 | I42: 4973.79 | J42: 0
A43: RC | B43: B1 | C43: 612 | D43: SPCR | E43: SPCRC | F43: SPCRC2 | G43: 612 | I43: 4913.75 | J43: 0
A44: RC | B44: B1 | C44: 612 | D44: SPCR | E44: SPCRC | F44: SPCRC2 | G44: 612 | I44: 4845.73 | J44: 0
A45: RC | B45: B1 | C45: 612 | D45: SPCR | E45: SPCRC | F45: SPCRC2 | G45: 612 | I45: 4845.73 | J45: 0
A46: RC | B46: B1 | C46: 612 | D46: SPCR | E46: SPCRC | F46: SPCRC2 | G46: 612 | I46: 4789.81 | J46: 0
A47: RC | B47: B1 | C47: 612 | D47: SPCR | E47: SPCRC | F47: SPCRC2 | G47: 612 | I47: 4845.73 | J47: 0
A48: RC | B48: B1 | C48: 612 | D48: SPCR | E48: SPCRC | F48: SPCRC2 | G48: 612 | I48: 4801.72 | J48: 0
A49: RC | B49: B1 | C49: 612 | D49: SPCR | E49: SPCRC | F49: SPCRC2 | G49: 612 | I49: 4845.73 | J49: 0
A50: RC | B50: B1 | C50: 616 | D50: SPCR | E50: SPCRC | F50: SPCRC2 | G50: 616 | I50: 1410.37 | J50: 0
A51: RC | B51: B1 | C51: 641 | D51: SPCR | E51: SPCRC | F51: SPCRC1 | G51: 641 | I51: 150000 | J51: 0
A52: RC | B52: B1 | C52: 645 | D52: SPCR | E52: SPCRC | F52: SPCRC1 | G52: 645 | I52: 120000 | J52: 0
A53: RC | B53: B1 | C53: 647 | D53: SPCR | E53: SPCRC | F53: SPCRC1 | G53: 647 | I53: 260580 | J53: 0
A54: RC | B54: B1 | C54: 656 | D54: SPCR | E54: SPCRC | F54: SPCRC2 | G54: 656 | I54: 18000 | J54: 0
A55: RC | B55: B1 | C55: 657 | D55: SPCR | E55: SPCRC | F55: SPCRC3 | G55: 657 | I55: 85000 | J55: 0
A56: RC | B56: B1 | C56: 6577 | D56: SPCR | E56: SPCRC | F56: SPCRC3 | G56: 657 | H56: 6577 | I56: 20000 | J56: 0
A57: RC | B57: B1 | C57: 681 | D57: SPCR | E57: SPCRC | F57: SPCRC2 | G57: 681 | I57: 168000 | J57: 0
A58: RC | B58: B1 | C58: 701 | D58: SPCR | E58: SPCRP | F58: SPCRP4 | G58: 701 | I58: 0 | J58: 284000
A59: RC | B59: B1 | C59: 706 | D59: SPCR | E59: SPCRP | F59: SPCRP4 | G59: 706 | I59: 0 | J59: 3000
A60: RC | B60: B1 | C60: 706 | D60: SPCR | E60: SPCRP | F60: SPCRP4 | G60: 706 | I60: 0 | J60: 21932.34
A61: RC | B61: B1 | C61: 707 | D61: SPCR | E61: SPCRP | F61: SPCRP4 | G61: 707 | I61: 0 | J61: 2000.33
A62: RC | B62: B1 | C62: 707 | D62: SPCR | E62: SPCRP | F62: SPCRP4 | G62: 707 | I62: 0 | J62: 18751
A63: RC | B63: B1 | C63: 741 | D63: SPCR | E63: SPCRP | F63: SPCRP1 | G63: 741 | I63: 0 | J63: 324000
A64: RC | B64: B1 | C64: 744 | D64: SPCR | E64: SPCRP | F64: SPCRP3 | G64: 744 | I64: 0 | J64: 324000
A65: RC | B65: B1 | C65: 745 | D65: SPCR | E65: SPCRP | F65: SPCRP3 | G65: 745 | I65: 0 | J65: 324000
A66: RC | B66: B1 | C66: 7813 | D66: SPCR | E66: SPCRP | F66: SPCRP4 | G66: 7813 | I66: 0 | J66: 11000
A67: RC | B67: B1 | C67: 756 | D67: SPCR | E67: SPCRP | F67: SPCRP4 | G67: 756 | I67: 0 | J67: 140000
A68: RC | B68: B1 | C68: 765 | D68: SPCR | E68: SPCRP | F68: SPCRP4 | G68: 765 | I68: 0 | J68: 168000
A69: RC | B69: B1 | C69: 7672 | D69: SPCR | E69: SPCRP | F69: SPCRP4 | G69: 767 | H69: 7672 | I69: 0 | J69: 10000
A70: RC | B70: B1 | C70: 781 | D70: SPCR | E70: SPCRP | F70: SPCRP4 | G70: 781 | I70: 0 | J70: 88000
A71: RC | B71: B1 | C71: 786 | D71: SPCR | E71: SPCRP | F71: SPCRP4 | G71: 786 | I71: 0 | J71: 8000

Sheet PrepTab1 (hidden)
A1: Code fichier : | B1: =+CONCATENATE("CR",Donnees!AH6,"_",Donnees!Z6,REPT(" ",10-LEN(Donnees!Z6)),"_",Donnees!AA6,"_",Donnees!AC6,"_",Donnees!M6,"_",Donnees!AD6,".txt") -> CRP_1479999999_03_02_2018_04.txt
A3: 100001 | E3: =+CONCATENATE(A3,Donnees!Z6,REPT(" ",10-LEN(Donnees!Z6)),Donnees!AA6,Donnees!AB6,REPT(" ",2-LEN(Donnees!AB6)),Donnees!AC6,Donnees!M6,Donnees!AD6,Donnees!AE6,Donnees!AF6,Donnees!AG6) -> 10000114799999990301022018043112201831639383431639383400080
A4: 200002 | B4: 01 | C4: ='Situation patrimoniale'!C12 -> 530580 | D4: =IF(C4>=0,CONCATENATE("+",+TEXT(C4*100,"00000000000000")),CONCATENATE("",+TEXT(C4*100,"00000000000000"))) -> +00000053058000 | E4: =+CONCATENATE(A4,B4,D4,REPT(" ",59-LEN(CONCATENATE(A4,B4,D4)))) -> 20000201+00000053058000
A5: 200003 | B5: 02 | C5: ='Situation patrimoniale'!C13 -> 0 | D5: +00000000000000 | E5: 20000302+00000000000000
A6: 200004 | B6: 03 | C6: ='Situation patrimoniale'!C14 -> 960049.29 | D6: +00000096004929 | E6: 20000403+00000096004929
A7: 200005 | B7: 04 | C7: ='Situation patrimoniale'!C15 -> 105000 | D7: +00000010500000 | E7: 20000504+00000010500000
A8: 200006 | B8: 05 | C8: ='Situation patrimoniale'!E12 -> 324000 | D8: +00000032400000 | E8: 20000605+00000032400000
A9: 200007 | B9: 06 | C9: ='Situation patrimoniale'!E13 -> 0 | D9: +00000000000000 | E9: 20000706+00000000000000
A10: 200008 | B10: 07 | C10: ='Situation patrimoniale'!E14 -> 648000 | D10: +00000064800000 | E10: 20000807+00000064800000
A11: 200009 | B11: 08 | C11: ='Situation patrimoniale'!E15 -> 754683.67 | D11: +00000075468367 | E11: 20000908+00000075468367
A12: 200010 | B12: 09 | C12: ='Situation patrimoniale'!C16 -> 1595629.29 | D12: +00000159562929 | E12: 20001009+00000159562929
A13: 200011 | B13: 10 | C13: ='Situation patrimoniale'!E16 -> 1726683.67 | D13: +00000172668367 | E13: 20001110+00000172668367
A14: 200012 | B14: 11 | C14: ='Situation patrimoniale'!C17 -> 131054.38 | D14: +00000013105438 | E14: 20001211+00000013105438
A15: 200013 | B15: 12 | C15: ='Situation patrimoniale'!E17 -> 0 | D15: +00000000000000 | E15: 20001312+00000000000000
A16: 200014 | B16: 13 | C16: ='Situation patrimoniale'!C18 -> 1726683.67 | D16: +00000172668367 | E16: 20001413+00000172668367
A17: 200015 | B17: 14 | C17: ='Situation patrimoniale'!E18 -> 1726683.67 | D17: +00000172668367 | E17: 20001514+00000172668367
A18: 900016 | E18: =+CONCATENATE(A18,REPT(" ",59-LEN(A18))) -> 900016

Sheet Tab1 (hidden)
A1: =+PrepTab1!E3 -> 10000114799999990301022018043112201831639383431639383400080
A2: =+PrepTab1!E4 -> 20000201+00000053058000
A3: =+PrepTab1!E5 -> 20000302+00000000000000
A4: =+PrepTab1!E6 -> 20000403+00000096004929
A5: =+PrepTab1!E7 -> 20000504+00000010500000
A6: =+PrepTab1!E8 -> 20000605+00000032400000
A7: =+PrepTab1!E9 -> 20000706+00000000000000
A8: =+PrepTab1!E10 -> 20000807+00000064800000
A9: =+PrepTab1!E11 -> 20000908+00000075468367
A10: =+PrepTab1!E12 -> 20001009+00000159562929
A11: =+PrepTab1!E13 -> 20001110+00000172668367
A12: =+PrepTab1!E14 -> 20001211+00000013105438
A13: =+PrepTab1!E15 -> 20001312+00000000000000
A14: =+PrepTab1!E16 -> 20001413+00000172668367
A15: =+PrepTab1!E17 -> 20001514+00000172668367
A16: =+PrepTab1!E18 -> 900016

Sheet PrepTab2 (hidden)
A1: Code fichier : | B1: =+CONCATENATE("CAF",Donnees!AH6,"_",Donnees!Z6,REPT(" ",10-LEN(Donnees!Z6)),"_",Donnees!AA6,"_",Donnees!AC6,"_",Donnees!M6,"_",Donnees!AD6,".txt") -> CAFP_1479999999_03_02_2018_04.txt
A3: 100001 | E3: =+CONCATENATE(A3,Donnees!Z6,REPT(" ",10-LEN(Donnees!Z6)),Donnees!AA6,Donnees!AB6,REPT(" ",2-LEN(Donnees!AB6)),Donnees!AC6,Donnees!M6,Donnees!AD6,Donnees!AE6,Donnees!AF6,Donnees!AG6) -> 10000114799999990301022018043112201831639383431639383400080
A4: 200002 | B4: 01 | C4: ='Situation patrimoniale'!C24 -> 131054.38 | D4: =IF(C4>=0,CONCATENATE("+",+TEXT(C4*100,"00000000000000")),CONCATENATE("",+TEXT(C4*100,"00000000000000"))) -> +00000013105438 | E4: =+CONCATENATE(A4,B4,D4,REPT(" ",59-LEN(CONCATENATE(A4,B4,D4)))) -> 20000201+00000013105438
A5: 200003 | B5: 02 | C5: ='Situation patrimoniale'!C25 -> 324663.41 | D5: +00000032466341 | E5: 20000302+00000032466341
A6: 200004 | B6: 03 | C6: ='Situation patrimoniale'!C26 -> 96000 | D6: +00000009600000 | E6: 20000403+00000009600000
A7: 200005 | B7: 04 | C7: ='Situation patrimoniale'!C27 -> 38000 | D7: +00000003800000 | E7: 20000504+00000003800000
A8: 200006 | B8: 05 | C8: ='Situation patrimoniale'!C28 -> 150000 | D8: +00000015000000 | E8: 20000605+00000015000000
A9: 200007 | B9: 06 | C9: ='Situation patrimoniale'!C29 -> 11000 | D9: +00000001100000 | E9: 20000706+00000001100000
A10: 200008 | B10: 07 | C10: ='Situation patrimoniale'!C30 -> 236717.79 | D10: +00000023671779 | E10: 20000807+00000023671779
A11: 900009 | E11: =+CONCATENATE(A11,REPT(" ",59-LEN(A11))) -> 900009

Sheet Tab2 (hidden)
A1: =+PrepTab2!E3 -> 10000114799999990301022018043112201831639383431639383400080
A2: =+PrepTab2!E4 -> 20000201+00000013105438
A3: =+PrepTab2!E5 -> 20000302+00000032466341
A4: =+PrepTab2!E6 -> 20000403+00000009600000
A5: =+PrepTab2!E7 -> 20000504+00000003800000
A6: =+PrepTab2!E8 -> 20000605+00000015000000
A7: =+PrepTab2!E9 -> 20000706+00000001100000
A8: =+PrepTab2!E10 -> 20000807+00000023671779
A9: =+PrepTab2!E11 -> 900009

Sheet PrepTab3 (hidden)
A1: Code fichier : | B1: =+CONCATENATE("TF",Donnees!AH6,"_",Donnees!Z6,REPT(" ",10-LEN(Donnees!Z6)),"_",Donnees!AA6,"_",Donnees!AC6,"_",Donnees!M6,"_",Donnees!AD6,".txt") -> TFP_1479999999_03_02_2018_04.txt
A3: 100001 | E3: =+CONCATENATE(A3,Donnees!Z6,REPT(" ",10-LEN(Donnees!Z6)),Donnees!AA6,Donnees!AB6,REPT(" ",2-LEN(Donnees!AB6)),Donnees!AC6,Donnees!M6,Donnees!AD6,Donnees!AE6,Donnees!AF6,Donnees!AG6) -> 10000114799999990301022018043112201831639383431639383400080
A4: 200002 | B4: 01 | C4: ='Situation patrimoniale'!C37 -> 0 | D4: =IF(C4>=0,CONCATENATE("+",+TEXT(C4*100,"00000000000000")),CONCATENATE("",+TEXT(C4*100,"00000000000000"))) -> +00000000000000 | E4: =+CONCATENATE(A4,B4,D4,REPT(" ",59-LEN(CONCATENATE(A4,B4,D4)))) -> 20000201+00000000000000
A5: 200003 | B5: 02 | C5: ='Situation patrimoniale'!C38 -> 952720 | D5: +00000095272000 | E5: 20000302+00000095272000
A6: 200004 | B6: 03 | C6: ='Situation patrimoniale'!C41 -> 48000 | D6: +00000004800000 | E6: 20000403+00000004800000
A7: 200005 | B7: 04 | C7: ='Situation patrimoniale'!C42 -> 1000720 | D7: +00000100072000 | E7: 20000504+00000100072000
A8: 200006 | B8: 05 | C8: ='Situation patrimoniale'!E37 -> 236717.79 | D8: +00000023671779 | E8: 20000605+00000023671779
A9: 200007 | B9: 06 | C9: ='Situation patrimoniale'!E38 -> 400000 | D9: +00000040000000 | E9: 20000706+00000040000000
A10: 200008 | B10: 07 | C10: ='Situation patrimoniale'!E39 -> 116000 | D10: +00000011600000 | E10: 20000807+00000011600000
A11: 200009 | B11: 08 | C11: ='Situation patrimoniale'!E40 -> 150000 | D11: +00000015000000 | E11: 20000908+00000015000000
A12: 200010 | B12: 09 | C12: ='Situation patrimoniale'!E41 -> 108000 | D12: +00000010800000 | E12: 20001009+00000010800000
A13: 200011 | B13: 10 | C13: ='Situation patrimoniale'!E42 -> 1010717.79 | D13: +00000101071779 | E13: 20001110+00000101071779
A14: 200012 | B14: 11 | C14: ='Situation patrimoniale'!C43 -> 9997.79 | D14: +00000000999779 | E14: 20001211+00000000999779
A15: 200013 | B15: 12 | C15: ='Situation patrimoniale'!E43 -> 0 | D15: +00000000000000 | E15: 20001312+00000000000000
A16: 900014 | E16: =+CONCATENATE(A16,REPT(" ",59-LEN(A16))) -> 900014

Sheet Tab3 (hidden)
A1: =+PrepTab3!E3 -> 10000114799999990301022018043112201831639383431639383400080
A2: =+PrepTab3!E4 -> 20000201+00000000000000
A3: =+PrepTab3!E5 -> 20000302+00000095272000
A4: =+PrepTab3!E6 -> 20000403+00000004800000
A5: =+PrepTab3!E7 -> 20000504+00000100072000
A6: =+PrepTab3!E8 -> 20000605+00000023671779
A7: =+PrepTab3!E9 -> 20000706+00000040000000
A8: =+PrepTab3!E10 -> 20000807+00000011600000
A9: =+PrepTab3!E11 -> 20000908+00000015000000
A10: =+PrepTab3!E12 -> 20001009+00000010800000
A11: =+PrepTab3!E13 -> 20001110+00000101071779
A12: =+PrepTab3!E14 -> 20001211+00000000999779
A13: =+PrepTab3!E15 -> 20001312+00000000000000
A14: =+PrepTab3!E16 -> 900014

Sheet PrepTab4 (hidden)
A1: Code fichier : | B1: =+CONCATENATE("SP",Donnees!AH6,"1_",Donnees!Z6,REPT(" ",10-LEN(Donnees!Z6)),"_",Donnees!AA6,"_",Donnees!AC6,"_",Donnees!M6,"_",Donnees!AD6,".txt") -> SPP1_1479999999_03_02_2018_04.txt
A3: 100001 | E3: =+CONCATENATE(A3,Donnees!Z6,REPT(" ",10-LEN(Donnees!Z6)),Donnees!AA6,Donnees!AB6,REPT(" ",2-LEN(Donnees!AB6)),Donnees!AC6,Donnees!M6,Donnees!AD6,Donnees!AE6,Donnees!AF6,Donnees!AG6) -> 10000114799999990301022018043112201831639383431639383400080
A4: 200002 | B4: 01 | C4: ='Pdf4'!C11 -> 0 | D4: =IF(C4>=0,CONCATENATE("+",+TEXT(C4*100,"00000000000000")),CONCATENATE("",+TEXT(C4*100,"00000000000000"))) -> +00000000000000 | E4: =+CONCATENATE(A4,B4,D4,REPT(" ",59-LEN(CONCATENATE(A4,B4,D4)))) -> 20000201+00000000000000
A5: 200003 | B5: 02 | C5: ='Pdf4'!C12 -> 952720 | D5: +00000095272000 | E5: 20000302+00000095272000
A6: 200004 | B6: 03 | C6: ='Pdf4'!C15 -> 48000 | D6: +00000004800000 | E6: 20000403+00000004800000
A7: 200005 | B7: 04 | C7: ='Pdf4'!C16 -> 1000720 | D7: +00000100072000 | E7: 20000504+00000100072000
A8: 200006 | B8: 05 | C8: ='Pdf4'!E11 -> 236717.79 | D8: +00000023671779 | E8: 20000605+00000023671779
A9: 200007 | B9: 06 | C9: ='Pdf4'!E12 -> 400000 | D9: +00000040000000 | E9: 20000706+00000040000000
A10: 200008 | B10: 07 | C10: ='Pdf4'!E13 -> 116000 | D10: +00000011600000 | E10: 20000807+00000011600000
A11: 200009 | B11: 08 | C11: ='Pdf4'!E14 -> 150000 | D11: +00000015000000 | E11: 20000908+00000015000000
A12: 200010 | B12: 09 | C12: ='Pdf4'!E15 -> 108000 | D12: +00000010800000 | E12: 20001009+00000010800000
A13: 200011 | B13: 10 | C13: ='Pdf4'!E16 -> 1010717.79 | D13: +00000101071779 | E13: 20001110+00000101071779
A14: 200012 | B14: 11 | C14: ='Pdf4'!C17 -> 9997.79 | D14: +00000000999779 | E14: 20001211+00000000999779
A15: 200013 | B15: 12 | C15: ='Pdf4'!E17 -> 0 | D15: +00000000000000 | E15: 20001312+00000000000000
A16: 900014 | E16: =+CONCATENATE(A16,REPT(" ",59-LEN(A16))) -> 900014

Sheet Tab4 (hidden)
A1: =PrepTab4!E3 -> 10000114799999990301022018043112201831639383431639383400080
A2: =PrepTab4!E4 -> 20000201+00000000000000
A3: =PrepTab4!E5 -> 20000302+00000095272000
A4: =PrepTab4!E6 -> 20000403+00000004800000
A5: =PrepTab4!E7 -> 20000504+00000100072000
A6: =PrepTab4!E8 -> 20000605+00000023671779
A7: =PrepTab4!E9 -> 20000706+00000040000000
A8: =PrepTab4!E10 -> 20000807+00000011600000
A9: =PrepTab4!E11 -> 20000908+00000015000000
A10: =PrepTab4!E12 -> 20001009+00000010800000
A11: =PrepTab4!E13 -> 20001110+00000101071779
A12: =PrepTab4!E14 -> 20001211+00000000999779
A13: =PrepTab4!E15 -> 20001312+00000000000000
A14: =PrepTab4!E16 -> 900014
